bitfinex/quotes_SOLUSD_20250201
["timestamp","ask_amount","ask_price","bid_price","bid_amount"]
[1738417313206,8.05755857,228.9,228.89,0.063]
[1738417320914,8.05755857,228.9,228.89,13.50748553]
[1738417331247,8.05755857,228.91,228.89,13.50748553]
[1738417331824,8.08755857,228.92,228.89,13.50748553]
[1738417332444,0.03,228.92,228.9,1.5148]
[1738417334049,0.03,228.92,228.9,218.0148]
[1738417335440,0.03,228.92,228.91,6.3444]
[1738417335642,8.08755857,228.92,228.91,6.3444]
[1738417335849,8.08755857,228.92,228.9,218.0148]
[1738417336042,8.05755857,228.91,228.9,218.0148]
[1738417338864,8.05755857,228.91,228.9,83.8148]
[1738417339958,8.05755857,228.91,228.9,82.3]
[1738417340151,40.28779285,228.91,228.9,82.3]
[1738417340554,53.69964138,228.91,228.89,0.063]
[1738417340872,8.05755857,228.9,228.89,0.063]
[1738417345163,21.4694071,228.9,228.89,0.063]
[1738417350665,8.05755857,228.9,228.89,0.063]
[1738417353667,8.05755857,228.9,228.89,82.363]
[1738417357174,8.05755857,228.91,228.89,82.363]
[1738417358464,8.05755857,228.9,228.89,82.363]
[1738417358656,21.4694071,228.9,228.89,82.363]
[1738417361473,21.4694071,228.9,228.89,75.91078145]
[1738417365479,8.05755857,228.9,228.89,75.91078145]
[1738417376290,8.08755857,228.9,228.89,75.91078145]
[1738417382785,21.4994071,228.9,228.88,0.063]
[1738417382989,8.05755857,228.89,228.83,7.24651722]
[1738417383190,8.05755857,228.84,228.83,7.24651722]
[1738417389117,8.05755857,228.86,228.83,7.24651722]
[1738417390203,8.05755857,228.86,228.83,11.61651722]
[1738417391217,8.05755857,228.88,228.83,11.61651722]
[1738417391415,8.05755857,228.88,228.83,12.27180068]
[1738417392316,8.05755857,228.88,228.83,146.47180068]
[1738417392518,8.05755857,228.88,228.83,145.81651722]
[1738417394332,8.05755857,228.89,228.83,145.81651722]
[1738417394526,0.03,228.9,228.84,13.20803359]
[1738417394833,0.03,228.9,228.86,0.12549]
[1738417395136,0.03,228.9,228.87,0.65516791]
[1738417396123,0.03,228.9,228.87,5.02436791]
[1738417396320,0.03,228.9,228.88,0.12549]
[1738417396525,0.03,228.9,228.89,2.18522679]
[1738417397319,0.03,228.9,228.89,2.31071679]
[1738417397530,0.03,228.9,228.89,171.87643111]
[1738417397722,0.03,228.9,228.89,171.22130432]
[1738417397917,0.03,228.9,228.89,149.62640722]
[1738417398705,0.03,228.9,228.89,153.99530722]
[1738417400961,0.03,228.9,228.89,167.53264575]
[1738417401242,0.03,228.9,228.89,175.59020432]
[1738417403610,0.03,228.9,228.89,176.59020432]
[1738417404941,0.03,228.9,228.89,179.43020432]
[1738417405450,0.03,228.9,228.89,179.55569432]
[1738417406139,0.03,228.9,228.89,192.67569432]
[1738417406849,0.0001,228.9,228.89,192.80118432]
[1738417410153,0.03,228.92,228.91,15.78831853]
[1738417410357,0.03,228.92,228.91,28.8692983]
[1738417410952,0.03,228.92,228.91,27.7438083]
[1738417411173,0.03,228.92,228.91,26.7438083]
[1738417412161,0.03,228.92,228.91,13.66282853]
[1738417414277,0.03,228.92,228.91,0.12549]
[1738417414573,8.08755857,228.92,228.91,141.41641722]
[1738417419059,8.08755857,228.92,228.91,7.21641722]
[1738417427573,0.03,228.92,228.91,7.21641722]
[1738417434782,8.08755857,228.92,228.91,7.21641722]
[1738417436177,40.31779285,228.92,228.91,7.21641722]
[1738417436367,8.08755857,228.92,228.91,7.21641722]
[1738417436767,40.31779285,228.92,228.9,0.063]
[1738417437073,40.28779285,228.91,228.9,0.063]
[1738417437804,8.05755857,228.91,228.9,0.063]
[1738417441685,40.28779285,228.91,228.9,0.063]
[1738417444990,41.79739285,228.91,228.9,0.063]
[1738417455080,40.28779285,228.91,228.9,0.063]
[1738417455407,8.05755857,228.91,228.9,0.063]
[1738417457407,8.08755857,228.91,228.9,0.063]
[1738417457579,40.31779285,228.91,228.9,0.063]
[1738417461907,20.0,228.88,228.87,0.063]
[1738417462090,28.05755857,228.88,228.87,0.063]
[1738417463296,28.05755857,228.88,228.83,7.24641722]
[1738417463491,8.05755857,228.84,228.83,0.03]
[1738417467606,20.0,228.81,228.76,0.03]
[1738417467815,8.05755857,228.77,228.76,7.24641722]
[1738417472609,8.05755857,228.77,228.76,0.03]
[1738417484868,8.05755857,228.78,228.76,7.24641722]
[1738417485084,8.05755857,228.79,228.76,7.24641722]
[1738417485646,8.05755857,228.82,228.76,145.81771722]
[1738417486078,8.05755857,228.81,228.76,145.81771722]
[1738417486379,8.05755857,228.8,228.76,141.44641722]
[1738417486771,8.05755857,228.79,228.76,141.44641722]
[1738417488490,8.05755857,228.8,228.76,141.44641722]
[1738417488672,8.05755857,228.81,228.76,145.81771722]
[1738417488857,8.05755857,228.81,228.76,141.44641722]
[1738417490172,8.05755857,228.8,228.76,141.44641722]
[1738417492102,8.08755857,228.8,228.76,141.44641722]
[1738417492387,8.05755857,228.79,228.76,141.44641722]
[1738417493264,8.05755857,228.78,228.76,141.44641722]
[1738417493482,8.05755857,228.77,228.76,141.44641722]
[1738417495081,8.05755857,228.77,228.76,0.03]
[1738417495284,20.0,228.74,228.72,0.063]
[1738417495582,8.05755857,228.73,228.72,0.063]
[1738417505465,8.05755857,228.73,228.63,8.1884]
[1738417505664,8.05755857,228.64,228.59,82.3]
[1738417505864,8.05755857,228.61,228.59,82.3]
[1738417506060,8.05755857,228.62,228.59,82.3]
[1738417506689,8.05755857,228.62,228.58,6.2377]
[1738417507093,8.05755857,228.6,228.58,6.2377]
[1738417507413,8.05755857,228.59,228.53,139.52692596]
[1738417507707,8.05755857,228.54,228.53,4.82692596]
[1738417507988,1.0,228.67,228.53,4.82692596]
[1738417507989,8.05755857,228.55,228.53,4.82692596]
[1738417508282,8.05755857,228.56,228.53,4.82692596]
[1738417509482,8.05755857,228.55,228.53,4.82692596]
[1738417509673,8.05755857,228.56,228.53,4.82692596]
[1738417510674,8.05755857,228.54,228.53,4.82692596]
[1738417511501,8.05755857,228.55,228.53,4.82692596]
[1738417512198,8.05755857,228.54,228.53,4.82692596]
[1738417515108,20.0,228.51,228.44,133.702]
[1738417515298,8.05755857,228.45,228.4,134.702]
[1738417515489,8.05755857,228.44,228.39,4.3782]
[1738417516203,8.05755857,228.41,228.36,135.2471]
[1738417516508,8.05755857,228.39,228.36,135.2471]
[1738417516704,8.05755857,228.39,228.36,1.5451]
[1738417516889,8.05755857,228.38,228.36,1.5451]
[1738417517089,8.05755857,228.39,228.36,1.5451]
[1738417517310,20.0,228.44,228.36,1.5451]
[1738417517311,8.05755857,228.37,228.36,0.03]
[1738417517689,8.05755857,228.39,228.36,0.03]
[1738417518011,8.05755857,228.4,228.36,0.03]
[1738417518312,8.05755857,228.38,228.36,0.03]
[1738417518498,8.05755857,228.37,228.36,0.03]
[1738417518695,8.05755857,228.38,228.36,0.03]
[1738417519303,20.0,228.44,228.36,0.03]
[1738417519304,8.05755857,228.37,228.36,0.03]
[1738417520908,8.05755857,228.4,228.36,0.03]
[1738417521423,8.05755857,228.41,228.36,0.03]
[1738417521720,47.09890691,228.47,228.36,8.08755857]
[1738417521721,8.05755857,228.43,228.36,8.08755857]
[1738417522122,1.0,228.24,228.13,0.03]
[1738417522316,8.05755857,228.14,228.13,0.03]
[1738417523321,20.0,228.11,227.99,0.23581604]
[1738417523626,8.05755857,228.09,228.0,1.0]
[1738417523908,12.70367338,228.04,227.99,0.23581604]
[1738417525221,12.70367338,228.04,227.99,13.64766457]
[1738417525744,12.70367338,228.04,227.99,0.23581604]
[1738417526109,12.70367338,228.04,227.99,13.64766457]
[1738417526530,12.70367338,228.03,227.99,13.64766457]
[1738417526932,12.70367338,228.0,227.99,0.23581604]
[1738417527805,12.70367338,228.0,227.99,0.26581604]
[1738417528836,12.70367338,228.01,227.99,0.26581604]
[1738417529220,20.0,228.0,227.99,0.26581604]
[1738417529610,12.70367338,228.01,227.99,0.26581604]
[1738417531046,12.70367338,228.05,227.99,4.65181604]
[1738417531608,12.70367338,228.05,228.0,13.41184853]
[1738417531809,12.70367338,228.07,228.0,26.11552191]
[1738417532425,12.70367338,228.06,228.0,13.41184853]
[1738417532826,12.70367338,228.05,228.01,4.3857]
[1738417533133,12.70367338,228.03,227.99,13.67766457]
[1738417533340,12.70367338,228.03,227.99,4.65181604]
[1738417533633,12.70367338,228.04,227.99,4.65181604]
[1738417534912,12.70367338,228.04,227.99,0.26581604]
[1738417536038,12.70367338,228.02,227.99,4.65191604]
[1738417536225,12.70367338,228.02,227.99,0.26581604]
[1738417536535,12.70367338,228.0,227.99,0.26581604]
[1738417537415,12.70367338,228.05,227.99,0.26581604]
[1738417537610,12.70367338,228.06,227.99,0.26581604]
[1738417537825,36.25523674,228.14,227.99,12.96948942]
[1738417537826,12.70367338,228.07,227.99,12.96948942]
[1738417538441,12.70367338,228.04,227.99,0.26581604]
[1738417538619,12.70367338,228.02,228.0,4.3859]
[1738417539030,12.70367338,228.02,227.99,0.26581604]
[1738417539421,12.70367338,228.06,227.99,12.96948942]
[1738417539629,20.0,228.05,227.99,12.96948942]
[1738417540326,20.0,228.05,227.99,0.26581604]
[1738417540712,20.0,228.05,227.99,4.65191604]
[1738417542828,12.70367338,228.04,227.99,0.26581604]
[1738417543028,12.70367338,228.01,227.99,0.26581604]
[1738417543656,12.70367338,228.0,227.99,0.26581604]
[1738417550633,22.08660125,228.11,227.99,0.26581604]
[1738417550634,12.70367338,228.02,227.99,0.26581604]
[1738417551176,12.70367338,228.07,227.99,12.96948942]
[1738417551361,12.70367338,228.06,227.99,0.26581604]
[1738417551543,12.70367338,228.05,227.99,0.26581604]
[1738417551940,12.70367338,228.03,227.99,0.26581604]
[1738417552339,12.70367338,228.0,227.99,0.26581604]
[1738417554258,12.70367338,228.01,227.99,0.26581604]
[1738417554646,12.70367338,228.02,227.99,0.26581604]
[1738417555463,12.70367338,228.05,227.99,0.26581604]
[1738417555647,12.70367338,228.05,227.99,4.65191604]
[1738417556166,12.70367338,228.04,227.99,4.65191604]
[1738417556574,12.70367338,228.03,227.99,4.65191604]
[1738417557378,12.70367338,228.02,227.99,0.26581604]
[1738417558246,12.70367338,228.0,227.99,0.26581604]
[1738417558752,12.70367338,228.02,227.99,0.26581604]
[1738417560472,12.70367338,228.0,227.99,0.26581604]
[1738417560671,12.70367338,228.02,227.99,0.26581604]
[1738417560868,12.70367338,228.04,227.99,0.26581604]
[1738417561556,12.70367338,228.06,227.99,4.65171604]
[1738417561756,12.70367338,228.08,227.99,4.65171604]
[1738417562074,12.70367338,228.08,227.99,6.16971604]
[1738417562272,12.70367338,228.08,228.0,12.70367338]
[1738417562571,12.70367338,228.1,228.02,17.08907338]
[1738417562758,12.70367338,228.11,228.04,12.70367338]
[1738417562955,12.76667338,228.13,228.06,12.70367338]
[1738417563159,12.70367338,228.12,228.04,12.70367338]
[1738417563361,12.70367338,228.11,228.04,12.70367338]
[1738417563559,12.70367338,228.1,228.03,12.70367338]
[1738417563770,12.70367338,228.11,228.03,12.70367338]
[1738417564156,12.70367338,228.1,228.04,4.3851]
[1738417564556,12.70367338,228.06,228.02,4.3854]
[1738417564876,12.70367338,228.05,228.02,4.3854]
[1738417565279,12.70367338,228.11,228.03,26.11552191]
[1738417565449,12.70367338,228.11,228.03,26.77302406]
[1738417565648,12.70367338,228.09,228.03,14.06935068]
[1738417565866,12.70367338,228.09,228.03,13.41184853]
[1738417566272,12.70367338,228.09,228.02,17.79734853]
[1738417566482,12.70367338,228.03,227.99,0.26581604]
[1738417566672,12.70367338,228.02,227.99,0.26581604]
[1738417567177,12.70367338,228.06,227.99,4.65191604]
[1738417568752,12.70367338,228.06,228.0,13.41184853]
[1738417569066,12.70367338,228.09,228.01,12.70367338]
[1738417569978,12.70367338,228.09,228.02,4.3855]
[1738417570681,12.70367338,228.11,228.03,12.70367338]
[1738417570883,12.70367338,228.12,228.05,12.70367338]
[1738417571478,12.76667338,228.13,228.06,12.70367338]
[1738417571978,0.063,228.13,228.08,12.70367338]
[1738417572177,0.063,228.13,228.07,17.08807338]
[1738417572384,0.063,228.13,228.07,4.3844]
[1738417573182,0.063,228.13,228.07,12.70367338]
[1738417573477,0.063,228.13,228.08,13.41184853]
[1738417573694,0.063,228.13,228.09,12.70367338]
[1738417574379,0.063,228.13,228.07,4.1]
[1738417574380,0.063,228.13,228.07,3.1]
[1738417574590,12.70367338,228.12,228.07,3.1]
[1738417575270,12.76667338,228.13,228.07,7.4844]
[1738417575673,0.063,228.13,228.07,7.4844]
[1738417577589,0.063,228.13,228.07,3.1]
[1738417577884,12.76667338,228.13,228.07,3.1]
[1738417578088,12.70367338,228.09,228.05,7.7044]
[1738417578393,12.70367338,228.06,228.02,0.03]
[1738417578574,12.70367338,228.04,228.02,0.03]
[1738417578773,12.70367338,228.03,228.02,0.03]
[1738417579789,12.70367338,228.05,228.02,0.03]
[1738417580169,12.70367338,228.04,228.02,0.03]
[1738417580663,12.70367338,228.05,228.02,0.03]
[1738417580867,12.70367338,228.04,228.02,0.03]
[1738417581364,6.3382,228.13,228.02,0.03]
[1738417581365,12.70367338,228.05,228.02,0.03]
[1738417581567,12.70367338,228.06,228.02,0.03]
[1738417581781,12.70367338,228.08,228.02,0.03]
[1738417581987,12.70367338,228.1,228.02,12.73367338]
[1738417582201,12.70367338,228.11,228.04,12.70367338]
[1738417582505,0.063,228.13,228.06,12.70367338]
[1738417583368,12.70367338,228.11,228.04,17.08877338]
[1738417584008,12.70367338,228.09,228.04,4.3851]
[1738417584182,12.70367338,228.06,228.02,0.03]
[1738417584501,12.70367338,228.04,228.02,0.03]
[1738417584705,12.70367338,228.06,228.02,0.03]
[1738417585031,12.76667338,228.13,228.05,12.70367338]
[1738417585215,12.76667338,228.13,228.06,20.49847338]
[1738417585419,12.70367338,228.11,228.06,12.1795]
[1738417585599,12.70367338,228.11,228.04,4.3851]
[1738417586221,12.70367338,228.09,228.03,12.70367338]
[1738417586428,12.70367338,228.08,228.02,0.03]
[1738417586800,12.70367338,228.08,228.02,4.4155]
[1738417587996,12.70367338,228.06,228.02,0.03]
[1738417588201,12.70367338,228.04,228.02,0.03]
[1738417589158,12.70367338,228.03,228.02,0.03]
[1738417592251,12.70367338,228.05,228.02,0.03]
[1738417593956,12.70367338,228.07,228.02,0.03]
[1738417594254,12.70367338,228.05,228.02,0.03]
[1738417597336,12.70367338,228.03,228.02,0.03]
[1738417598552,25.40734676,228.03,227.87,12.70367338]
[1738417598854,12.70367338,227.95,227.87,12.70367338]
[1738417600752,12.70367338,227.93,227.85,23.43297338]
[1738417601657,12.70367338,227.93,227.85,20.31297338]
[1738417601864,12.70367338,227.93,227.85,12.70367338]
[1738417602466,12.70367338,227.91,227.83,12.70367338]
[1738417602643,12.70367338,227.89,227.83,3.12]
[1738417603357,12.70367338,227.89,227.82,12.70367338]
[1738417603664,12.70367338,227.93,227.85,12.70367338]
[1738417603869,12.70367338,227.94,227.86,12.70367338]
[1738417604173,12.70367338,227.93,227.85,12.70367338]
[1738417605545,12.70367338,227.93,227.85,17.09247338]
[1738417605864,12.70367338,227.92,227.84,12.70367338]
[1738417606241,12.70367338,227.91,227.84,12.70367338]
[1738417606466,12.70367338,227.94,227.86,12.70367338]
[1738417607043,12.70367338,227.96,227.88,12.70367338]
[1738417607366,12.70367338,227.95,227.88,12.70367338]
[1738417607947,12.70367338,228.01,227.94,12.70367338]
[1738417608154,32.70367338,228.0,227.93,12.70367338]
[1738417608448,12.70367338,227.99,227.92,12.70367338]
[1738417608944,12.70367338,228.01,227.93,12.70367338]
[1738417609872,12.70367338,228.01,227.94,12.70367338]
[1738417610073,12.70367338,228.01,227.93,12.70367338]
[1738417610748,20.0,228.0,227.95,12.70367338]
[1738417611163,12.70367338,228.04,227.96,12.70367338]
[1738417611547,12.70367338,228.05,227.97,12.70367338]
[1738417612070,12.70367338,228.06,227.98,12.70367338]
[1738417612266,12.70367338,228.05,227.97,12.70367338]
[1738417613077,12.70367338,228.05,227.97,17.74782904]
[1738417613372,12.70367338,228.05,227.97,17.09007338]
[1738417614164,12.70367338,228.06,227.99,12.70367338]
[1738417614367,0.063,228.13,228.0,12.70367338]
[1738417614368,12.70367338,228.07,228.0,12.70367338]
[1738417614579,12.70367338,228.08,228.01,12.70367338]
[1738417615239,12.70367338,228.09,228.01,12.70367338]
[1738417615984,12.70367338,228.09,228.02,25.06777338]
[1738417616276,12.70367338,228.1,228.03,12.70367338]
[1738417616861,12.70367338,228.09,228.02,25.06777338]
[1738417617164,12.70367338,228.07,228.02,7.9786]
[1738417618481,12.70367338,228.03,227.98,17.79804853]
[1738417618685,12.70367338,228.01,227.97,9.3855]
[1738417618990,12.70367338,228.01,227.97,6.2855]
[1738417619177,12.70367338,228.02,227.97,6.2855]
[1738417620579,12.70367338,228.03,227.97,6.2855]
[1738417620788,12.70367338,228.03,227.97,10.672]
[1738417621084,0.063,228.01,227.97,10.672]
[1738417622984,12.76667338,228.01,227.97,10.672]
[1738417623156,0.063,228.01,227.97,10.672]
[1738417627806,0.063,228.01,227.99,12.70367338]
[1738417628773,0.063,228.01,228.0,12.70367338]
[1738417629092,0.063,228.01,228.0,13.36131086]
[1738417629603,0.063,228.01,228.0,17.74721086]
[1738417630703,0.063,228.01,228.0,32.41003939]
[1738417631497,0.063,228.01,228.0,32.15905939]
[1738417632004,0.063,228.01,228.0,31.15905939]
[1738417632179,0.063,228.01,228.0,17.79774853]
[1738417632494,0.063,228.01,227.99,4.3861]
[1738417632696,0.063,228.01,227.99,17.08977338]
[1738417632907,0.063,228.01,228.0,3.06]
[1738417633086,0.063,228.01,228.0,15.76367338]
[1738417634109,0.063,228.01,228.0,12.70367338]
[1738417634289,0.063,228.01,228.0,17.08957338]
[1738417635905,0.063,228.01,228.0,31.15909125]
[1738417637806,0.063,228.01,227.99,4.3861]
[1738417640575,0.063,228.01,227.99,12.51659438]
[1738417641590,0.063,228.01,228.0,12.51639438]
[1738417641796,0.063,228.01,228.0,17.08766873]
[1738417643320,0.063,228.01,228.0,30.49951726]
[1738417644123,0.063,228.01,228.0,31.40815515]
[1738417644903,0.063,228.13,228.07,12.70176873]
[1738417645108,0.063,228.13,228.08,12.70176873]
[1738417645906,0.063,228.13,228.09,4.3842]
[1738417650902,0.063,228.13,228.09,12.70176873]
[1738417651520,0.063,228.13,228.08,12.70176873]
[1738417652017,0.063,228.13,228.09,4.3842]
[1738417653211,0.063,228.13,228.09,12.70176873]
[1738417653717,0.063,228.13,228.11,12.70176873]
[1738417653916,0.063,228.13,228.09,12.70176873]
[1738417654311,0.063,228.13,228.08,26.11361726]
[1738417655226,0.063,228.13,228.09,4.3842]
[1738417656727,0.063,228.13,228.09,17.08596873]
[1738417658226,0.063,228.13,228.09,4.3842]
[1738417658599,0.063,228.13,228.09,17.08596873]
[1738417659131,0.063,228.13,228.1,7.404]
[1738417661327,0.063,228.13,228.11,13.41184853]
[1738417661536,0.063,228.13,228.11,26.11361726]
[1738417661727,0.063,228.13,228.11,13.41184853]
[1738417662227,0.063,228.13,228.1,20.10576873]
[1738417662615,0.063,228.13,228.1,7.404]
[1738417665044,0.063,228.13,228.1,3.02]
[1738417665045,8.18600391,228.13,228.1,3.02]
[1738417665214,8.12300391,228.11,228.1,3.02]
[1738417665739,8.18600391,228.13,228.1,3.02]
[1738417666227,0.063,228.13,228.1,3.02]
[1738417668713,8.18600391,228.13,228.1,3.02]
[1738417672641,0.063,228.13,228.1,3.02]
[1738417676247,0.063,228.13,228.1,7.4039]
[1738417680250,0.063,228.13,228.11,17.79554853]
[1738417682148,0.063,228.13,228.1,3.02]
[1738417682951,8.12300391,228.12,228.1,3.02]
[1738417683129,8.12300391,228.11,228.1,3.02]
[1738417684223,8.12300391,228.11,228.02,6.0666]
[1738417684429,8.12300391,228.04,228.01,0.03]
[1738417684740,8.12300391,228.03,228.01,0.03]
[1738417686152,8.12300391,228.04,228.01,0.03]
[1738417687054,8.12300391,228.05,228.01,0.03]
[1738417689355,8.12300391,228.04,228.01,0.03]
[1738417690559,1.639,228.12,228.01,0.03]
[1738417690560,8.12300391,228.02,228.01,0.03]
[1738417693264,8.12300391,228.03,228.01,0.03]
[1738417694372,8.12300391,228.04,228.01,0.03]
[1738417694538,1.639,228.12,228.01,8.15300391]
[1738417694745,8.12300391,228.09,228.02,8.12300391]
[1738417696373,8.12300391,228.08,228.01,12.53870391]
[1738417696950,8.12300391,228.08,228.02,8.12300391]
[1738417697260,8.12300391,228.09,228.02,12.50850391]
[1738417697772,0.063,228.13,228.07,21.53485244]
[1738417698077,0.063,228.13,228.1,8.12300391]
[1738417698270,0.063,228.13,228.11,8.12300391]
[1738417698472,0.063,228.13,228.12,8.12300391]
[1738417698774,0.063,228.13,228.11,8.12300391]
[1738417699478,0.063,228.13,228.11,12.50680391]
[1738417700148,0.063,228.13,228.11,8.12300391]
[1738417701059,0.063,228.13,228.1,21.53485244]
[1738417701657,0.063,228.13,227.79,0.0084]
[1738417701658,1.0,227.8,227.79,0.0084]
[1738417701981,1.0,227.8,227.72,29.77155772]
[1738417701982,1.0,227.77,227.72,28.90655772]
[1738417702169,8.12300391,227.81,227.72,28.90655772]
[1738417702574,21.81451298,227.8,227.72,28.90655772]
[1738417702957,8.12300391,227.79,227.72,28.90655772]
[1738417703171,1.0723009,227.86,227.72,28.90655772]
[1738417703172,8.12300391,227.77,227.72,28.90655772]
[1738417703368,8.12300391,227.75,227.72,28.90655772]
[1738417703678,0.65737425,227.82,227.72,28.90655772]
[1738417703976,3.07207971,227.76,227.72,28.90655772]
[1738417704279,15.80835169,227.76,227.72,28.90655772]
[1738417704660,3.07207971,227.76,227.72,28.90655772]
[1738417705055,12.73627198,227.74,227.72,28.90655772]
[1738417705664,12.73627198,227.74,227.5,1.07296139]
[1738417705870,12.73627198,227.72,227.57,0.65872002]
[1738417706161,12.73627198,227.72,227.62,16.73627198]
[1738417706359,12.73627198,227.7,227.62,12.73627198]
[1738417706570,12.73627198,227.7,227.54,5.3948]
[1738417706571,12.73627198,227.66,227.58,12.73627198]
[1738417706748,12.73627198,227.66,227.58,16.71627198]
[1738417706953,12.73627198,227.73,227.64,12.73627198]
[1738417707155,20.88078472,227.71,227.64,12.73627198]
[1738417707361,33.6170567,227.71,227.62,12.73627198]
[1738417707772,20.88078472,227.71,227.64,12.73627198]
[1738417707974,20.88078472,227.71,227.66,12.73627198]
[1738417708151,13.48399462,227.67,227.59,18.5736]
[1738417708484,13.48399462,227.67,227.66,12.73627198]
[1738417708782,13.48399462,227.69,227.64,12.73627198]
[1738417709554,18.66442895,227.71,227.64,12.73627198]
[1738417710272,13.73627198,227.7,227.62,12.73627198]
[1738417710589,18.66442895,227.71,227.64,12.73627198]
[1738417710884,11.93187699,227.71,227.64,12.73627198]
[1738417711267,11.93187699,227.71,227.58,3.98]
[1738417711268,1.0,227.69,227.62,12.73627198]
[1738417711772,11.93187699,227.71,227.66,13.41184853]
[1738417711975,11.93187699,227.71,227.65,12.73627198]
[1738417712181,11.93187699,227.71,227.63,12.73627198]
[1738417712182,1.0,227.69,227.63,12.73627198]
[1738417712380,1.0,227.69,227.63,13.41184853]
[1738417712562,1.0,227.69,227.63,26.14812051]
[1738417715871,1.0,227.69,227.64,12.73627198]
[1738417716063,1.0,227.71,227.65,12.73627198]
[1738417716468,0.063,227.69,227.64,12.73627198]
[1738417716668,0.063,227.69,227.63,26.17812051]
[1738417717292,0.063,227.69,227.64,12.73627198]
[1738417717492,0.063,227.69,227.63,26.17812051]
[1738417718201,0.063,227.69,227.64,12.73627198]
[1738417718694,0.063,227.69,227.63,26.17812051]
[1738417719902,0.063,227.69,227.63,13.44184853]
[1738417719903,12.79927198,227.69,227.63,13.44184853]
[1738417720127,13.73627198,227.67,227.63,0.03]
[1738417720301,12.73627198,227.65,227.63,0.03]
[1738417720600,12.73627198,227.66,227.63,0.03]
[1738417721169,12.73627198,227.65,227.63,0.03]
[1738417721408,12.73627198,227.66,227.63,0.03]
[1738417721698,1.0,227.65,227.63,0.03]
[1738417722285,13.73627198,227.65,227.63,0.03]
[1738417722905,1.0,227.65,227.63,0.03]
[1738417723203,0.063,227.69,227.63,0.03]
[1738417723204,1.0,227.67,227.63,0.03]
[1738417723403,0.87251474,227.67,227.63,0.03]
[1738417723602,13.60878672,227.67,227.63,0.03]
[1738417724706,12.73627198,227.66,227.63,0.03]
[1738417727513,0.87251474,227.65,227.63,0.03]
[1738417731092,0.87251474,227.67,227.63,0.03]
[1738417731694,12.73627198,227.66,227.63,0.03]
[1738417732005,13.60878672,227.64,227.63,0.03]
[1738417732512,0.87251474,227.64,227.63,0.03]
[1738417734516,13.60878672,227.64,227.63,0.03]
[1738417735815,9.03375752,227.64,227.63,0.03]
[1738417736699,9.03375752,227.64,227.63,0.0001]
[1738417737921,0.87251474,227.64,227.63,0.0001]
[1738417738093,9.03375752,227.64,227.63,0.0001]
[1738417739025,9.03375752,227.66,227.63,0.0001]
[1738417739197,9.03375752,227.68,227.61,8.14134278]
[1738417739401,0.87251474,227.66,227.61,8.16124278]
[1738417740228,0.87251474,227.66,227.63,0.03]
[1738417741131,9.03375752,227.66,227.63,0.03]
[1738417741331,8.16124278,227.64,227.63,0.03]
[1738417741627,9.03375752,227.64,227.63,0.03]
[1738417744428,0.87251474,227.66,227.63,0.03]
[1738417744607,8.22424278,227.67,227.63,0.03]
[1738417744608,2.57005681,227.64,227.63,0.03]
[1738417746305,10.73129959,227.64,227.63,0.03]
[1738417747133,10.73129959,227.64,227.59,10.38691473]
[1738417747334,8.16124278,227.61,227.58,13.41184853]
[1738417747537,8.16124278,227.6,227.58,3.7]
[1738417747702,12.75533262,227.6,227.58,3.7]
[1738417748406,12.75533262,227.59,227.58,3.7]
[1738417749038,12.75533262,227.6,227.58,3.7]
[1738417749236,0.063,227.67,227.58,3.7]
[1738417749237,12.75533262,227.64,227.58,3.7]
[1738417750525,0.87251474,227.65,227.59,12.75533262]
[1738417750841,13.62784736,227.65,227.58,20.84923262]
[1738417751344,0.87251474,227.65,227.59,30.56078115]
[1738417751511,0.93551474,227.67,227.61,13.41184853]
[1738417751931,0.063,227.67,227.63,13.41184853]
[1738417752335,0.063,227.67,227.59,4.3936]
[1738417752336,0.063,227.67,227.61,12.75533262]
[1738417752641,0.063,227.64,227.61,12.75533262]
[1738417753011,0.063,227.64,227.63,13.41184853]
[1738417754149,0.063,227.64,227.63,17.80484853]
[1738417755938,0.063,227.64,227.63,30.56018115]
[1738417759432,0.063,227.64,227.63,30.68567115]
[1738417760039,0.063,227.64,227.63,12.75533262]
[1738417760247,0.063,227.64,227.6,12.75533262]